lending/lending_fUSD_20250131
["ID","MTS","AMOUNT","RATE_DAILY","PERIOD"]
[351086179,1738329054846,-638.68,0.00016712,2]
[351086180,1738329054855,-500.0,0.00016712,2]
[351086181,1738329054865,-607.29,0.00016712,2]
[351086182,1738329054875,-500.0,0.00016712,2]
[351086183,1738329054884,-615.06,0.00016712,2]
[351086184,1738329054894,-500.0,0.00016712,2]
[351086185,1738329054904,-645.52,0.00016712,2]
[351086186,1738329054914,-500.0,0.00016712,2]
[351086187,1738329054923,-500.0,0.00016712,2]
[351086188,1738329054933,-1618.84,0.00016712,2]
[351086189,1738329054942,-1486.85,0.00016712,2]
[351086190,1738329054952,-500.0,0.00016712,2]
[351086191,1738329054961,-500.0,0.00016712,2]
[351086192,1738329054970,-500.0,0.00016712,2]
[351086193,1738329054980,-500.0,0.00016712,2]
[351086194,1738329054989,-500.0,0.00016712,2]
[351086195,1738329054999,-574.69,0.00016712,2]
[351086196,1738329055008,-500.0,0.00016712,2]
[351086197,1738329055018,-500.0,0.00016712,2]
[351086198,1738329055027,-500.0,0.00016712,2]
[351086199,1738329055036,-500.0,0.00016712,2]
[351086200,1738329055046,-500.0,0.00016712,2]
[351086201,1738329055055,-500.0,0.00016712,2]
[351086202,1738329055065,-500.0,0.00016712,2]
[351086203,1738329055074,-500.0,0.00016712,2]
[351086204,1738329055083,-500.0,0.00016712,2]
[351086205,1738329055093,-500.0,0.00016712,2]
[351086206,1738329055102,-500.0,0.00016712,2]
[351086207,1738329055112,-500.0,0.00016712,2]
[351086208,1738329055125,-500.0,0.00016712,2]
[351086209,1738329055135,-586.51,0.00016712,2]
[351086210,1738329055144,-970.42,0.00016712,2]
[351086211,1738329055153,-500.0,0.00016712,2]
[351086212,1738329055162,-500.0,0.00016712,2]
[351086213,1738329055172,-636.84,0.00016712,2]
[351086214,1738329055181,-830.14,0.00016712,2]
[351086215,1738329055190,-500.0,0.00016712,2]
[351086216,1738329055200,-200.0,0.00016712,2]
[351086217,1738329055209,-1164.34,0.00016712,2]
[351086218,1738329055218,-705.4,0.00016712,2]
[351086219,1738329055228,-500.0,0.00016712,2]
[351086220,1738329055237,-555.38,0.00016712,2]
[351086221,1738329055247,-500.0,0.00016712,2]
[351086222,1738329055256,-500.0,0.00016712,2]
[351086223,1738329055265,-719.69,0.00016712,2]
[351086224,1738329055274,-500.0,0.00016712,2]
[351086225,1738329055283,-500.0,0.00016712,2]
[351086226,1738329055292,-644.17,0.00016712,2]
[351086227,1738329055302,-893.65,0.00016712,2]
[351086228,1738329055311,-500.0,0.00016712,2]
[351086229,1738329055320,-1287.67,0.00016712,2]
[351086230,1738329055330,-500.0,0.00016712,2]
[351086231,1738329055340,-500.0,0.00016712,2]
[351086232,1738329055349,-500.0,0.00016712,2]
[351086233,1738329055358,-500.0,0.00016712,2]
[351086234,1738329055368,-747.56,0.00016712,2]
[351086235,1738329055377,-500.0,0.00016712,2]
[351086236,1738329055387,-500.0,0.00016712,2]
[351086237,1738329055396,-757.81,0.00016712,2]
[351086238,1738329055405,-509.73232581,0.00016712,2]
[351086239,1738329055414,-500.0,0.00016712,2]
[351086240,1738329055424,-500.0,0.00016712,2]
[351086241,1738329055433,-500.0,0.00016712,2]
[351086242,1738329055442,-500.0,0.00016712,2]
[351086243,1738329055451,-703.48,0.00016712,2]
[351086244,1738329055460,-559.74,0.00016712,2]
[351086245,1738329055469,-1023.89,0.00016712,2]
[351086246,1738329055479,-500.0,0.00016712,2]
[351086247,1738329055488,-500.0,0.00016712,2]
[351086248,1738329055497,-500.0,0.00016712,2]
[351086249,1738329055507,-500.0,0.00016712,2]
[351086250,1738329055516,-897.9,0.00016712,2]
[351086251,1738329055524,-562.98,0.00016712,2]
[351086252,1738329055534,-500.0,0.00016712,2]
[351086253,1738329055543,-780.63,0.00016712,2]
[351086254,1738329055552,-656.95,0.00016712,2]
[351086255,1738329055561,-757.01,0.00016712,2]
[351086256,1738329055570,-1307.84,0.00016712,2]
[351086257,1738329055580,-500.0,0.00016712,2]
[351086258,1738329055589,-1276.28,0.00016712,2]
[351086259,1738329055599,-946.91,0.00016712,2]
[351086260,1738329055608,-500.0,0.00016712,2]
[351086261,1738329055617,-1506.86,0.00016712,2]
[351086262,1738329055626,-500.0,0.00016712,2]
[351086263,1738329055636,-913.16,0.00016712,2]
[351086264,1738329055644,-842.64,0.00016712,2]
[351086265,1738329055654,-4700.11,0.00016712,2]
[351086266,1738329055663,-500.0,0.00016712,2]
[351086267,1738329055672,-500.0,0.00016712,2]
[351086268,1738329055681,-2679.05,0.00016712,2]
[351086269,1738329055690,-500.0,0.00016712,2]
[351086270,1738329055699,-500.0,0.00016712,2]
[351086271,1738329055708,-832.31,0.00016712,2]
[351086272,1738329055718,-3000.0,0.00016712,2]
[351086273,1738329055727,-602.0,0.00016712,2]
[351086274,1738329055736,-1350.96,0.00016712,2]
[351086275,1738329055746,-500.0,0.00016712,2]
[351086276,1738329055755,-528.91257607,0.00016712,2]
[351086277,1738329055764,-1808.31,0.00016712,2]
[351086278,1738329055773,-500.0,0.00016712,2]
[351086279,1738329055782,-500.0,0.00016712,2]
[351086280,1738329055792,-517.85,0.00016712,2]
[351086281,1738329055801,-2639.36,0.00016712,2]
[351086282,1738329055810,-1179.41,0.00016712,2]
[351086283,1738329055819,-743.52,0.00016712,2]
[351086284,1738329055828,-1606.73,0.00016712,2]
[351086285,1738329055838,-1623.99,0.00016712,2]
[351086286,1738329055847,-1404.02,0.00016712,2]
[351086287,1738329055856,-500.0,0.00016712,2]
[351086288,1738329055865,-1372.88,0.00016712,2]
[351086289,1738329055875,-500.0,0.00016712,2]
[351086290,1738329055884,-500.0,0.00016712,2]
[351086291,1738329055894,-864.92,0.00016712,2]
[351086292,1738329055903,-500.0,0.00016712,2]
[351086293,1738329055912,-1077.4,0.00016712,2]
[351086294,1738329055921,-705.67,0.00016712,2]
[351086295,1738329055930,-547.19,0.00016712,2]
[351086296,1738329055939,-500.0,0.00016712,2]
[351086297,1738329055948,-500.0,0.00016712,2]
[351086298,1738329055957,-540.12,0.00016712,2]
[351086299,1738329055966,-531.49,0.00016712,2]
[351086300,1738329055975,-500.0,0.00016712,2]
[351086301,1738329055984,-500.0,0.00016712,2]
[351086302,1738329055993,-1079.03,0.00016712,2]
[351086303,1738329056003,-2432.2,0.00016712,2]
[351086304,1738329056282,-500.0,0.00016712,2]
[351086305,1738329056292,-500.0,0.00016712,2]
[351086306,1738329056301,-500.0,0.00016712,2]
[351086307,1738329056310,-4651.18,0.00016712,2]
[351086308,1738329056319,-500.0,0.00016712,2]
[351086309,1738329056328,-500.0,0.00016712,2]
[351086310,1738329056337,-500.0,0.00016712,2]
[351086311,1738329056346,-1133.5,0.00016712,2]
[351086312,1738329056356,-500.0,0.00016712,2]
[351086313,1738329056365,-780.34,0.00016712,2]
[351086314,1738329056374,-500.0,0.00016712,2]
[351086315,1738329056384,-939.63,0.00016712,2]
[351086316,1738329056394,-500.0,0.00016712,2]
[351086317,1738329056404,-968.83,0.00016712,2]
[351086318,1738329056413,-655.96,0.00016712,2]
[351086319,1738329056422,-788.07,0.00016712,2]
[351086320,1738329056431,-3928.65,0.00016712,2]
[351086321,1738329056440,-453.95754101,0.00016712,2]
[351086322,1738329056450,-530.52,0.00016712,2]
[351086323,1738329056459,-902.32,0.00016712,2]
[351086324,1738329056468,-1742.78,0.00016712,2]
[351086325,1738329056477,-500.0,0.00016712,2]
[351086326,1738329056487,-1011.06,0.00016712,2]
[351086327,1738329056496,-1067.01,0.00016712,2]
[351086328,1738329056505,-1297.09,0.00016712,2]
[351086329,1738329056514,-500.0,0.00016712,2]
[351086330,1738329056524,-634.03,0.00016712,2]
[351086331,1738329056533,-2196.67,0.00016712,2]
[351086332,1738329056542,-2136.18,0.00016712,2]
[351086333,1738329056552,-860.21,0.00016712,2]
[351086334,1738329056561,-500.0,0.00016712,2]
[351086335,1738329056571,-2394.82,0.00016712,2]
[351086336,1738329056580,-506.55735995,0.00016712,2]
[351086337,1738329056591,-910.7,0.00016712,2]
[351086338,1738329056600,-500.0,0.00016712,2]
[351086339,1738329056609,-822.68,0.00016712,2]
[351086340,1738329056618,-851.19,0.00016712,2]
[351086341,1738329056627,-1226.61,0.00016712,2]
[351086342,1738329056637,-500.0,0.00016712,2]
[351086343,1738329056647,-702.01,0.00016712,2]
[351086344,1738329056656,-1195.54,0.00016712,2]
[351086345,1738329056666,-914.12,0.00016712,2]
[351086346,1738329056675,-1799.07,0.00016712,2]
[351086347,1738329056684,-802.58,0.00016712,2]
[351086348,1738329056693,-1903.73,0.00016712,2]
[351086349,1738329056702,-595.06,0.00016712,2]
[351086350,1738329056711,-500.0,0.00016712,2]
[351086351,1738329056720,-743.87,0.00016712,2]
[351086352,1738329056729,-500.0,0.00016712,2]
[351086353,1738329056738,-500.0,0.00016712,2]
[351086354,1738329056747,-500.0,0.00016712,2]
[351086355,1738329056756,-500.0,0.00016712,2]
[351086356,1738329056765,-500.0,0.00016712,2]
[351086357,1738329056774,-949.43,0.00016712,2]
[351086358,1738329056784,-1357.44,0.00016712,2]
[351086359,1738329056793,-500.0,0.00016712,2]
[351086360,1738329056802,-500.0,0.00016712,2]
[351086361,1738329056812,-1613.89,0.00016712,2]
[351086362,1738329056821,-500.0,0.00016712,2]
[351086363,1738329056830,-2316.42,0.00016712,2]
[351086364,1738329056840,-500.0,0.00016712,2]
[351086365,1738329056849,-500.0,0.00016712,2]
[351086366,1738329056858,-1521.07,0.00016712,2]
[351086367,1738329056867,-500.0,0.00016712,2]
[351086368,1738329056877,-4073.26,0.00016712,2]
[351086369,1738329056888,-1336.87,0.00016712,2]
[351086370,1738329056897,-500.0,0.00016712,2]
[351086371,1738329056907,-970.37,0.00016712,2]
[351086372,1738329056916,-500.0,0.00016712,2]
[351086373,1738329056925,-748.5,0.00016712,2]
[351086374,1738329056934,-940.15,0.00016712,2]
[351086375,1738329056944,-1719.95,0.00016712,2]
[351086376,1738329056954,-500.0,0.00016712,2]
[351086377,1738329056963,-2592.1,0.00016712,2]
[351086378,1738329056972,-500.0,0.00016712,2]
[351086379,1738329056982,-500.0,0.00016712,2]
[351086380,1738329056992,-691.44,0.00016712,2]
[351086381,1738329057001,-1294.35,0.00016712,2]
[351086382,1738329057011,-531.85,0.00016712,2]
[351086383,1738329057021,-500.0,0.00016712,2]
[351086384,1738329057031,-500.0,0.00016712,2]
[351086385,1738329057040,-1767.81,0.00016712,2]
[351086386,1738329057050,-846.99,0.00016712,2]
[351086387,1738329057059,-970.18,0.00016712,2]
[351086388,1738329057068,-500.0,0.00016712,2]
[351086389,1738329057077,-500.0,0.00016712,2]
[351086390,1738329057087,-375.00924363,0.00016712,2]
[351086391,1738329057097,-951.55,0.00016712,2]
[351086392,1738329057106,-759.68,0.00016712,2]
[351086393,1738329057120,-2923.5,0.00016712,2]
[351086394,1738329057129,-2217.75,0.00016712,2]
[351086395,1738329057140,-557.92,0.00016712,2]
[351086396,1738329057149,-1197.27,0.00016712,2]
[351086397,1738329057159,-1870.89,0.00016712,2]
[351086398,1738329057169,-500.0,0.00016712,2]
[351086399,1738329057179,-1747.62,0.00016712,2]
[351086400,1738329057189,-966.24,0.00016712,2]
[351086401,1738329057199,-2083.23,0.00016712,2]
[351086402,1738329057208,-629.6,0.00016712,2]
[351086403,1738329057218,-538.91,0.00016712,2]
[351086404,1738329057227,-506.73037324,0.00016712,2]
[351086405,1738329057236,-516.67,0.00016712,2]
[351086406,1738329057246,-1626.45,0.00016712,2]
[351086407,1738329057255,-1334.9,0.00016712,2]
[351086408,1738329057265,-500.0,0.00016712,2]
[351086409,1738329057274,-500.0,0.00016712,2]
[351086410,1738329057285,-2622.35,0.00016712,2]
[351086411,1738329057294,-1398.57,0.00016712,2]
[351086412,1738329057304,-1784.61,0.00016712,2]
[351086413,1738329057314,-500.0,0.00016712,2]
[351086414,1738329057323,-500.0,0.00016712,2]
[351086415,1738329057333,-694.6,0.00016712,2]
[351086416,1738329057342,-500.0,0.00016712,2]
[351086417,1738329057352,-1559.33,0.00016712,2]
[351086418,1738329057362,-549.49,0.00016712,2]
[351086419,1738329057372,-707.62,0.00016712,2]
[351086420,1738329057382,-851.01,0.00016712,2]
[351086421,1738329057392,-3575.06,0.00016712,2]
[351086422,1738329057402,-1639.99,0.00016712,2]
[351086423,1738329057411,-1126.03,0.00016712,2]
[351086424,1738329057421,-6700.13,0.00016712,2]
[351086425,1738329057431,-500.0,0.00016712,2]
[351086426,1738329057440,-4983.19,0.00016712,2]
[351086427,1738329057450,-1480.7,0.00016712,2]
[351086428,1738329057459,-500.0,0.00016712,2]
[351086429,1738329057469,-3420.33,0.00016712,2]
[351086430,1738329057478,-991.11,0.00016712,2]
[351086431,1738329057488,-583.56,0.00016712,2]
[351086432,1738329057499,-3727.24,0.00016712,2]
[351086433,1738329057507,-607.97,0.00016712,2]
[351086434,1738329057517,-1206.07,0.00016712,2]
[351086435,1738329057526,-2404.98,0.00016712,2]
[351086436,1738329057536,-2513.62,0.00016712,2]
[351086437,1738329057545,-500.0,0.00016712,2]
[351086438,1738329057555,-1210.51,0.00016712,2]
[351086439,1738329057565,-907.28,0.00016712,2]
[351086440,1738329057574,-1839.12,0.00016712,2]
[351086441,1738329057584,-960.89,0.00016712,2]
[351086442,1738329057593,-3367.69,0.00016712,2]
[351086443,1738329057603,-500.0,0.00016712,2]
[351086444,1738329057612,-5138.96,0.00016712,2]
[351086445,1738329057622,-710.73,0.00016712,2]
[351086446,1738329057631,-500.0,0.00016712,2]
[351086447,1738329057641,-1902.02,0.00016712,2]
[351086448,1738329057650,-500.0,0.00016712,2]
[351086449,1738329057660,-500.0,0.00016712,2]
[351086450,1738329057669,-500.0,0.00016712,2]
[351086451,1738329057678,-5350.71,0.00016712,2]
[351086452,1738329057688,-2209.52,0.00016712,2]
[351086453,1738329057697,-533.32,0.00016712,2]
[351086454,1738329057706,-2383.23,0.00016712,2]
[351086455,1738329057716,-6171.09,0.00016712,2]
[351086456,1738329057725,-500.0,0.00016712,2]
[351086457,1738329057735,-2082.02,0.00016712,2]
[351086458,1738329057745,-1408.52,0.00016712,2]
[351086459,1738329057755,-1075.8,0.00016712,2]
[351086460,1738329057765,-500.0,0.00016712,2]
[351086461,1738329057774,-996.0,0.00016712,2]
[351086462,1738329057783,-500.0,0.00016712,2]
[351086463,1738329057792,-919.54,0.00016712,2]
[351086464,1738329057801,-500.0,0.00016712,2]
[351086465,1738329057810,-500.0,0.00016712,2]
[351086466,1738329057819,-6333.8,0.00016712,2]
[351086467,1738329057828,-500.0,0.00016712,2]
[351086468,1738329057837,-500.0,0.00016712,2]
[351086469,1738329057846,-1782.62,0.00016712,2]
[351086470,1738329057855,-672.79,0.00016712,2]
[351086471,1738329057864,-500.0,0.00016712,2]
[351086472,1738329057873,-3051.84,0.00016712,2]
[351086473,1738329057882,-654.44,0.00016712,2]
[351086474,1738329057892,-500.0,0.00016712,2]
[351086475,1738329057902,-4891.44,0.00016712,2]
[351086476,1738329057911,-2090.99,0.00016712,2]
[351086477,1738329057920,-500.0,0.00016712,2]
[351086478,1738329057931,-1907.72,0.00016712,2]
[351086479,1738329057942,-669.8,0.00016712,2]
[351086480,1738329057952,-2000.0,0.00016712,2]
[351086481,1738329057962,-989.4,0.00016712,2]
[351086482,1738329057971,-3233.65,0.00016712,2]
[351086483,1738329057980,-1037.74,0.00016712,2]
[351086484,1738329057989,-4301.37,0.00016712,2]
[351086485,1738329057998,-500.0,0.00016712,2]
[351086486,1738329058007,-200.0,0.00016712,2]
[351086487,1738329058017,-500.0,0.00016712,2]
[351086488,1738329058026,-1957.36,0.00016712,2]
[351086489,1738329058035,-5708.97,0.00016712,2]
[351086490,1738329058044,-1160.4,0.00016712,2]
[351086491,1738329058053,-500.0,0.00016712,2]
[351086492,1738329058062,-500.0,0.00016712,2]
[351086493,1738329058071,-654.25,0.00016712,2]
[351086494,1738329058080,-2792.48,0.00016712,2]
[351086495,1738329058089,-10518.3,0.00016712,2]
[351086496,1738329058099,-673.07,0.00016712,2]
[351086497,1738329058108,-500.0,0.00016712,2]
[351086498,1738329058118,-1835.72,0.00016712,2]
[351086499,1738329058130,-847.7,0.00016712,2]
[351086500,1738329058141,-1913.93,0.00016712,2]
[351086501,1738329058151,-500.0,0.00016712,2]
[351086502,1738329058160,-500.0,0.00016712,2]
[351086503,1738329058169,-500.0,0.00016712,2]
[351086504,1738329058178,-1347.02,0.00016712,2]
[351086505,1738329058188,-500.0,0.00016712,2]
[351086506,1738329058198,-2497.8,0.00016712,2]
[351086507,1738329058207,-557.58,0.00016712,2]
[351086508,1738329058217,-2265.21,0.00016712,2]
[351086509,1738329058226,-546.44095359,0.00016712,2]
[351086510,1738329058236,-500.0,0.00016712,2]
[351086511,1738329058246,-6256.88,0.00016712,2]
[351086512,1738329058255,-825.38,0.00016712,2]
[351086513,1738329058265,-11784.79,0.00016712,2]
[351086514,1738329058274,-91508.98062785,0.00016712,2]
[351086515,1738329058284,-789.54638242,0.00016713,2]
[351086516,1738329058293,-1469.35,0.00016761,2]
[351086517,1738329058303,-500.51639644,0.00016773,2]
[351086518,1738329058312,-500.0,0.00016773,2]
[351086519,1738329058322,-514.4660509,0.0001678,2]
[351086520,1738329058331,-406.89,0.00016813,2]
[351086521,1738329058340,-234.27,0.00016813,2]
[351086522,1738329058349,-150.0,0.00016822,2]
[351086523,1738329058359,-540.5399153,0.00016825,2]
[351086524,1738329058368,-594.24,0.00016848,2]
[351086525,1738329058377,-798.88,0.00016848,2]
[351086526,1738329058387,-798.88,0.00016848,2]
[351086527,1738329058397,-798.88,0.00016848,2]
[351086528,1738329058406,-798.88,0.00016848,2]
[351086529,1738329058415,-946.4,0.00016849,2]
[351086530,1738329058425,-1377.592842,0.00016849,2]
[351086531,1738329058434,-568.22,0.00016849,2]
[351086532,1738329058448,-381.66669924,0.00016849,2]
[351086533,1738329058458,-957.03692,0.00016849,2]
[351086534,1738329058468,-500.0,0.00016849,2]
[351086535,1738329058478,-543.51,0.00016849,2]
[351086536,1738329058487,-799.3,0.00016849,2]
[351086537,1738329058496,-500.0,0.00016849,2]
[351086538,1738329058505,-567.52,0.00016849,2]
[351086539,1738329058515,-863.39,0.00016849,2]
[351086540,1738329058523,-500.0,0.00016849,2]
[351086541,1738329058533,-500.0,0.00016849,2]
[351086542,1738329058542,-500.0,0.00016849,2]
[351086543,1738329058551,-542.07,0.00016849,2]
[351086544,1738329058560,-500.0,0.00016849,2]
[351086545,1738329058635,-502.63,0.00016849,2]
[351086546,1738329058644,-500.0,0.00016849,2]
[351086547,1738329058654,-500.0,0.00016849,2]
[351086548,1738329058663,-500.0,0.00016849,2]
[351086549,1738329058672,-500.0,0.00016849,2]
[351086550,1738329058681,-307.66543915,0.00016849,2]
[351086551,1738329058690,-500.0,0.00016849,2]
[351086552,1738329058700,-782.78,0.00016849,2]
[351086553,1738329058709,-500.0,0.00016849,2]
[351086554,1738329058718,-664.58,0.00016849,2]
[351086555,1738329058727,-500.0,0.00016849,2]
[351086556,1738329058736,-500.0,0.00016849,2]
[351086557,1738329058746,-1577.84,0.00016849,2]
[351086558,1738329058756,-500.0,0.00016849,2]
[351086559,1738329058765,-500.0,0.00016849,2]
[351086560,1738329058774,-871.13,0.00016849,2]
[351086561,1738329058783,-500.0,0.00016849,2]
[351086562,1738329058792,-572.13,0.00016849,2]
[351086563,1738329058801,-500.0,0.00016849,2]
[351086564,1738329058810,-1315.14,0.00016849,2]
[351086565,1738329058819,-1697.24,0.00016849,2]
[351086566,1738329058828,-558.36,0.00016849,2]
[351086567,1738329058838,-965.82,0.00016849,2]
[351086568,1738329058847,-500.0,0.00016849,2]
[351086569,1738329058858,-1231.46,0.00016849,2]
[351086570,1738329058867,-1021.78,0.00016849,2]
[351086571,1738329058876,-500.0,0.00016849,2]
[351086572,1738329058887,-500.0,0.00016849,2]
[351086573,1738329058897,-500.0,0.00016849,2]
[351086574,1738329058906,-1327.84,0.00016849,2]
[351086575,1738329058916,-913.79,0.00016849,2]
[351086576,1738329058925,-500.0,0.00016849,2]
[351086577,1738329058934,-878.68,0.00016849,2]
[351086578,1738329058943,-500.35,0.00016849,2]
[351086579,1738329058952,-500.0,0.00016849,2]
[351086580,1738329058961,-500.0,0.00016849,2]
[351086581,1738329058970,-500.0,0.00016849,2]
[351086582,1738329058979,-710.68,0.00016849,2]
[351086583,1738329058988,-229.94303993,0.00016849,2]
[351086584,1738329058996,-506.24,0.00016849,2]
[351086585,1738329059005,-1095.34,0.00016849,2]
[351086586,1738329059014,-604.02822667,0.00016849,2]
[351086587,1738329059023,-914.93,0.00016849,2]
[351086588,1738329059032,-500.0,0.00016849,2]
[351086589,1738329059041,-759.24,0.00016849,2]
[351086590,1738329059050,-500.0,0.00016849,2]
[351086591,1738329059060,-516.98,0.00016849,2]
[351086592,1738329059069,-500.0,0.00016849,2]
[351086593,1738329059078,-500.0,0.00016849,2]
[351086594,1738329059087,-973.51,0.00016849,2]
[351086595,1738329059096,-500.0,0.00016849,2]
[351086596,1738329059106,-596.44,0.00016849,2]
[351086597,1738329059115,-500.0,0.00016849,2]
[351086598,1738329059129,-500.0,0.00016849,2]
[351086599,1738329059139,-500.0,0.00016849,2]
[351086600,1738329059147,-500.0,0.00016849,2]
[351086601,1738329059157,-500.0,0.00016849,2]
[351086602,1738329059166,-500.0,0.00016849,2]
[351086603,1738329059175,-500.0,0.00016849,2]
[351086604,1738329059184,-500.0,0.00016849,2]
[351086605,1738329059194,-500.0,0.00016849,2]
[351086606,1738329059203,-1436.84,0.00016849,2]
[351086607,1738329059213,-1260.54,0.00016849,2]
[351086608,1738329059222,-500.0,0.00016849,2]
[351086609,1738329059231,-980.35,0.00016849,2]
[351086610,1738329059240,-715.99,0.00016849,2]
[351086611,1738329059249,-500.0,0.00016849,2]
[351086612,1738329059260,-810.34,0.00016849,2]
[351086613,1738329059269,-843.3,0.00016849,2]
[351086614,1738329059278,-885.53,0.00016849,2]
[351086615,1738329059287,-500.0,0.00016849,2]
[351086616,1738329059296,-946.66,0.00016849,2]
[351086617,1738329059306,-500.0,0.00016849,2]
[351086618,1738329059315,-802.32,0.00016849,2]
[351086619,1738329059324,-500.0,0.00016849,2]
[351086620,1738329059334,-500.0,0.00016849,2]
[351086621,1738329059343,-500.0,0.00016849,2]
[351086622,1738329059352,-1451.88,0.00016849,2]
[351086623,1738329059362,-500.0,0.00016849,2]
[351086624,1738329059371,-502.54,0.00016849,2]
[351086625,1738329059380,-500.0,0.00016849,2]
[351086626,1738329059390,-500.0,0.00016849,2]
[351086627,1738329059400,-234.76,0.00016849,2]
[351086628,1738329059409,-500.0,0.00016849,2]
[351086629,1738329059419,-500.0,0.00016849,2]
[351086630,1738329059428,-845.24,0.00016849,2]
[351086631,1738329059437,-647.17,0.00016849,2]
[351086632,1738329059446,-698.25,0.00016849,2]
[351086633,1738329059456,-1165.58,0.00016849,2]
[351086634,1738329059466,-866.15,0.00016849,2]
[351086635,1738329059475,-781.77,0.00016849,2]
[351086636,1738329059484,-500.0,0.00016849,2]
[351086637,1738329059493,-500.0,0.00016849,2]
[351086638,1738329059503,-700.77,0.00016849,2]
[351086639,1738329059511,-686.74,0.00016849,2]
[351086640,1738329059521,-817.83,0.00016849,2]
[351086641,1738329059530,-895.02,0.00016849,2]
[351086642,1738329059539,-500.0,0.00016849,2]
[351086643,1738329059548,-554.73,0.00016849,2]
[351086644,1738329059557,-500.0,0.00016849,2]
[351086645,1738329059566,-500.0,0.00016849,2]
[351086646,1738329059575,-500.0,0.00016849,2]
[351086647,1738329059584,-500.0,0.00016849,2]
[351086648,1738329059593,-761.12,0.00016849,2]
[351086649,1738329059601,-500.0,0.00016849,2]
[351086650,1738329059610,-500.0,0.00016849,2]
[351086651,1738329059619,-500.0,0.00016849,2]
[351086652,1738329059628,-772.48,0.00016849,2]
[351086653,1738329059638,-500.0,0.00016849,2]
[351086654,1738329059647,-834.33,0.00016849,2]
[351086655,1738329059656,-500.0,0.00016849,2]
[351086656,1738329059665,-600.91,0.00016849,2]
[351086657,1738329059674,-821.05,0.00016849,2]
[351086658,1738329059684,-753.32,0.00016849,2]
[351086659,1738329059693,-500.0,0.00016849,2]
[351086660,1738329059703,-719.94,0.00016849,2]
[351086661,1738329059712,-500.0,0.00016849,2]
[351086662,1738329059721,-528.69,0.00016849,2]
[351086663,1738329059729,-928.65,0.00016849,2]
[351086664,1738329059739,-500.0,0.00016849,2]
[351086665,1738329059748,-1492.55,0.00016849,2]
[351086666,1738329059757,-667.48,0.00016849,2]
[351086667,1738329059767,-1144.46,0.00016849,2]
[351086668,1738329059776,-500.0,0.00016849,2]
[351086669,1738329059784,-567.66,0.00016849,2]
[351086670,1738329059793,-1194.43,0.00016849,2]
[351086671,1738329059803,-728.23,0.00016849,2]
[351086672,1738329059812,-500.0,0.00016849,2]
[351086673,1738329059820,-1214.08,0.00016849,2]
[351086674,1738329059830,-500.0,0.00016849,2]
[351086675,1738329059839,-638.68,0.00016849,2]
[351086676,1738329059847,-500.0,0.00016849,2]
[351086677,1738329059856,-607.29,0.00016849,2]
[351086678,1738329059865,-500.0,0.00016849,2]